Cogmind - Beta 15 @@@ ROGUE MODE // 2025.06.29 @ 19:55:59 Player: Duduxx Result: Destroyed by 18-U49(R) with Subdweller Laser Performance ------------- Evolutions (0) 0 Regions Visited (3) 600 Robots Destroyed (22) 110 Value Destroyed (466) 466 Prototype IDs (0) 0 Alien Tech Used (0) 0 Bonus (93) 93 TOTAL SCORE: 1269 Bonus ------- Follower Combat Kills 93 Cogmind --------- Core Integrity 0/250 Matter 262/300 Energy 157/170 System Corruption 6% Temperature Cool (6) Movement Rolling (130) Ox2 Location -10/Subcaves Parts ------- > --- POWER (1) -------- Makeshift Power Source > --- PROPULSION (2) --- Subdweller Monowheel Subdweller Monowheel > --- UTILITY (2) ------ Huge Storage Unit Core Shielding > --- WEAPON (2) ------- Riot Gun Subdweller Machine Gun > --- INVENTORY (25) --- Light Ion Engine Heat Sink Small Storage Unit Terrain Scan Processor Light Armor Plating Rocket Launcher Peak State ------------ > --- POWER ------------ Makeshift Power Source > --- PROPULSION ------- Subdweller Monowheel Subdweller Monowheel > --- UTILITY ---------- Huge Storage Unit Core Shielding > --- WEAPON ----------- Riot Gun Riot Gun > --- INVENTORY -------- Light Ion Engine Heat Sink Small Storage Unit Terrain Scan Processor Light Armor Plating Subdweller Machine Gun Rocket Launcher [Rating: 17] Favorites ----------- Power Ion Engine Engine Ion Engine Propulsion Wheel Treads Light Treads Wheel Wheel Utility Huge Storage Unit Device Improved Terrain Scanner Storage Huge Storage Unit Protection Core Shielding Weapon Medium Laser Energy Gun Medium Laser Energy Cannon Beam Cannon Ballistic Gun Subdweller Machine Gun Special Weapon Mining Laser Build | -11 -10 -10 -10 ------- Run | Yrd Mat Min Sub Slots Evolved . | . . . . Power . | . . . . Propulsion . | . . . . Utility . | . . . . Weapon . | . . . . Parts Attached 27 | 6 6 3 12 Power 4 | 1 . 1 2 Engine 4 | 1 . 1 2 Core . | . . . . Reactor . | . . . . Propulsion 10 | 2 3 1 4 Treads 2 | 2 . . . Leg . | . . . . Wheel 8 | . 3 1 4 Hover . | . . . . Flight . | . . . . Utility 4 | 1 2 . 1 Device 1 | 1 . . . Storage 2 | . 2 . . Processor . | . . . . Hackware . | . . . . Protection 1 | . . . 1 Artifact . | . . . . Weapon 9 | 2 1 1 5 Energy Gun 6 | 2 1 1 2 Energy Cannon 1 | . . . 1 Ballistic Gun 1 | . . . 1 Ballistic Cannon . | . . . . Launcher . | . . . . Special Weapon 1 | . . . 1 Impact Weapon . | . . . . Slashing Weapon . | . . . . Piercing Weapon . | . . . . Special Melee Weapon . | . . . . Unidentified Prototypes . | . . . . Corrupted Parts 2 | . . . 2 System Corruption 5 | . . . 5 Parts Lost 16 | . 2 3 11 Power 3 | . . 1 2 Propulsion 5 | . 1 1 3 Utility 1 | . . . 1 Weapon 7 | . 1 1 5 Highest Loss Streak 3 | . 2 3 2 To Critical Strikes . | . . . . Average Backups 7 | 3 7 7 8 Power . | . 1 . 1 Propulsion . | 1 1 . . Utility 4 | . 3 5 4 Weapon 2 | . 1 2 2 Tool/Special . | . . . . Unused Backups 6 | . 1 . 5 Power 1 | . . . 1 Propulsion . | . . . . Utility 3 | . . . 3 Weapon 2 | . 1 . 1 Tool/Special . | . . . . Average Slot Usage (%) 98 | . 98 99 97 Engine 13 | . 14 13 14 Treads 2 | . 11 . . Wheel 24 | . 15 28 25 Device 10 | . 14 14 6 Storage 13 | . 13 14 14 Protection 3 | . . . 7 Energy Gun 20 | . 28 28 12 Energy Cannon 5 | . . . 10 Ballistic Gun 1 | . . . 2 Peak Build Rating 17 | 8 10 10 17 Average Rating 9 | 5 9 9 10 On Entrance 7 | . 8 10 10 Naked Turns . | . . . . Heaviest Build 93 | 10 90 90 93 Greatest Support 40 | 40 40 26 40 Greatest Overweight (x) 9 | 1 3 8 9 Average Overweight (x) 3 | . 1 3 3 Largest Inventory Capacity 25 | 5 25 25 25 Average Capacity 22 | 5 18 25 25 Most Carried 10 | 5 10 9 10 Average Carried 7 | 3 7 7 8 Final Capacity 25 | 5 25 25 25 Final Carried 9 | 5 9 8 6 Class Distribution -------------------- 100% | Mutant Dominant Class ---------------- Mutant | -10/Materials Mutant | -10/Mines Mutant | -10/Subcaves Resources | -11 -10 -10 -10 ----------- Run | Yrd Mat Min Sub Matter Collected 473 | 260 60 20 133 Remotely . | . . . . Salvage Created 723 | 66 324 49 284 Parts 51 | 6 24 5 16 Haulers Intercepted . | . . . . Recyclers Shooed 1 | 1 . . . Parts Field Recycled . | . . . . Retrieved Matter . | . . . . Parts Self-Destructed 13 | . . . 13 Prevented . | . . . . Kills | -11 -10 -10 -10 ------- Run | Yrd Mat Min Sub Combat Hostiles Destroyed 16 | . 6 3 7 Guns 11 | . 5 3 3 Cannons 4 | . . . 4 AOE 1 | . 1 . . Classes Destroyed 7 | 1 5 . 1 Worker 1 | . 1 . . Builder 1 | . 1 . . Tunneler 3 | 3 . . . Recycler 1 | . 1 . . Swarmer 7 | . 3 3 1 Grunt 5 | . 3 . 2 Subdweller 4 | . . . 4 Best Kill Streak 4 | 3 4 3 2 Combat Bots Only 3 | . 3 3 2 Max Kills in Single Turn 2 | 1 2 1 1 Gunslinging . | . . . . Exploded 1 | . 1 . . Melee . | . . . . Uniques/NPCs Destroyed . | . . . . Combat | -11 -10 -10 -10 -------- Run | Yrd Mat Min Sub Hostile Shots Fired 121 | . 39 18 64 Missed 33 | . 9 3 21 Hits 88 | . 30 15 43 Projectile 88 | . 30 15 43 Damage Taken 1381 | 32 267 130 952 Core 265 | . 38 23 204 Absorbed by Shields . | . . . . Redirected to Shielding 28 | . . . 28 Core Remaining (%) 100 | 100 . . . Volleys Fired 72 | 4 16 4 48 Largest 2 | 2 2 2 2 Hottest 110 | 80 90 100 110 Shots Fired 127 | 8 32 8 79 Gun 88 | 8 32 8 40 Cannon 30 | . . . 30 Launcher . | . . . . Special 9 | . . . 9 Kinetic 5 | . . . 5 Thermal 71 | . 3 7 61 Explosive . | . . . . Electromagnetic 51 | 8 29 1 13 Robot Hit Streak 18 | 6 10 5 18 Robot Miss Streak 4 | 1 4 2 3 Penetration Max . | . . . . Secondary Targets 2 | . 1 . 1 Max Gunslinging Chain 1 | . 1 . 1 Shots Hit Robots 74 | 7 14 5 48 Core Hits 33 | 5 9 3 16 Critical Kills . | . . . . Critical Parts Destroyed . | . . . . Critical Strikes 1 | . . . 1 Burn 1 | . . . 1 Melee Attacks . | . . . . Impact . | . . . . Slashing . | . . . . Piercing . | . . . . Sneak Attacks . | . . . . Combat Hostiles . | . . . . Follow-up Attacks . | . . . . Damage Inflicted 1255 | 118 301 66 770 Guns 723 | 93 193 60 377 Cannons 386 | . . . 386 Explosions 124 | 25 99 . . Melee . | . . . . Ramming 22 | . 9 6 7 Kinetic 37 | . . . 37 Thermal 708 | 25 124 49 510 Explosive . | . . . . Electromagnetic 488 | 93 168 11 216 Impact . | . . . . Slashing . | . . . . Piercing . | . . . . Highest Corruption 6 | . . 1 6 Average Corruption 1 | . . 1 1 Corruption Purged . | . . . . Corruption Blocked . | . . . . Effects 16 | . . . 16 Message Errors 1 | . . . 1 Matter Fused 5 | . . . 5 Heat Flow Errors 1 | . . . 1 Energy Discharges 2 | . . . 2 Data Loss (minor) 6 | . . . 6 Data Loss (major) 1 | . . . 1 Overload Shots . | . . . . Overflow Damage . | . . . . Projectiles . | . . . . Explosions . | . . . . Melee . | . . . . Knockbacks 1 | . . . 1 Impact 1 | . . . 1 Kinetic . | . . . . Secondary . | . . . . Self-Inflicted Damage 42 | 32 4 3 3 Shots 1 | 1 . . . Rammed 3 | . 1 1 1 Targets Rammed 3 | . 1 1 1 Kicked . | . . . . Crushed . | . . . . Highest Temperature 261 | 48 168 88 261 Average Temperature 52 | 23 70 37 39 Received Heat Transfer 177 | . 54 . 123 Siege Activations . | . . . . Martial Activations . | . . . . Shielding Activations . | . . . . Robots Disrupted . | . . . . Combat Hostiles . | . . . . Robots Corrupted . | . . . . Combat Hostiles . | . . . . Parts Fried 2 | 1 . . 1 Impact Corruptions . | . . . . Robots Melted . | . . . . Combat Hostiles . | . . . . Parts Melted 1 | . . 1 . Heat Transferred 1630 | 100 124 148 1258 Parts Sabotaged . | . . . . Parts Stolen . | . . . . Parts Stripped . | . . . . Power Chain Reactions 2 | 1 1 . . Alert | -11 -10 -10 -10 ------- Run | Yrd Mat Min Sub Maximum Alert Level . | . . . . Low Security (%) 100 | 100 100 100 . Level 1 . | . . . . Level 2 . | . . . . Level 3 . | . . . . Level 4 . | . . . . Level 5 . | . . . . High Security . | . . . . Max Security . | . . . . Peak Influence 75 | 10 75 39 . Initial 19 | . . 19 . Average 9 | . 21 3 . Influence Increases 368 | 15 188 70 95 Destroy 0b10 Robot/C 260 | . 120 60 80 Destroy 0b10 Robot/NC 30 | 15 15 . . Destroy Leader 40 | . 20 10 10 Allied During Kill 5 | . . . 5 Disable Machine 30 | . 30 . . Destroy Structure 3 | . 3 . . Influence Decreases 368 | 15 137 121 95 Entered New Map 32 | . . 32 . Time Decay 281 | 15 117 59 90 Lost Part 55 | . 20 30 5 Squads Dispatched 2 | . 1 1 . Investigation 1 | . 1 . . Extermination . | . . . . Reinforcement . | . . . . Assault 1 | . . 1 . Garrison . | . . . . Intercept . | . . . . Searches Triggered . | . . . . Construction Impeded . | . . . . Haulers Reinforced . | . . . . Active Scanning Responses . | . . . . Cargo Convoy Interrupts . | . . . . Stealth | -11 -10 -10 -10 --------- Run | Yrd Mat Min Sub Distress Signals . | . . . . Communications Jammed . | . . . . Distress Signals . | . . . . Times Spotted 26 | . 8 3 15 Peak Tracking Total 4 | . 4 3 4 Tactical Retreats . | . . . . Traps | -11 -10 -10 -10 ------- Run | Yrd Mat Min Sub Traps Triggered 3 | . 1 . 2 Indirectly . | . . . . Trap Hack Attempts . | . . . . Triggered . | . . . . Disarmed . | . . . . Reprogrammed . | . . . . Reused . | . . . . Traps Extracted . | . . . . Installed . | . . . . Triggered . | . . . . Machines | -11 -10 -10 -10 ---------- Run | Yrd Mat Min Sub Machines Disabled 2 | . 2 . . Max in Single Turn 1 | . 1 . . Machines Repaired . | . . . . Machines Dismantled . | . . . . Machines Sabotaged . | . . . . Overloaded Fab Kills . | . . . . Hacking | -11 -10 -10 -10 --------- Run | Yrd Mat Min Sub Machines Accessed . | . . . . Terminals . | . . . . Fabricators . | . . . . Repair Stations . | . . . . Recycling Units . | . . . . Scanalyzers . | . . . . Garrison Access . | . . . . Total Hacks . | . . . . Successful . | . . . . Failed . | . . . . Catastrophic . | . . . . Database Lockouts . | . . . . Manual . | . . . . Terminals . | . . . . Fabricators . | . . . . Repair Stations . | . . . . Recycling Units . | . . . . Scanalyzers . | . . . . Garrison Access . | . . . . Terminal Hacks . | . . . . Fabricator Hacks . | . . . . Repair Station Hacks . | . . . . Recycling Unit Hacks . | . . . . Scanalyzer . | . . . . Garrison Access Hacks . | . . . . Unauthorized Hacks . | . . . . Terminals . | . . . . Fabricators . | . . . . Repair Stations . | . . . . Recycling Units . | . . . . Scanalyzers . | . . . . Garrison Access . | . . . . Data Cores Recovered . | . . . . Used . | . . . . Hacking Detections . | . . . . Full Trace Events . | . . . . Feedback Events . | . . . . Feedback Blocked . | . . . . Robot Schematics Acquired . | . . . . Robots Built . | . . . . Authchips . | . . . . Time . | . . . . Total Robot Build Rating . | . . . . Part Schematics Acquired . | . . . . Parts Built . | . . . . Authchips . | . . . . Time . | . . . . Total Part Build Rating . | . . . . Parts Repaired . | . . . . Time . | . . . . Parts Recycled . | . . . . Recycled Matter . | . . . . Retrieved Matter . | . . . . Retrieved Components . | . . . . Parts Scanalyzed . | . . . . Part Schematics Acquired . | . . . . Parts Damaged . | . . . . Bothacking | -11 -10 -10 -10 ------------ Run | Yrd Mat Min Sub Used RIF Installer . | . . . . Robots Hacked . | . . . . Non-combat . | . . . . Combat . | . . . . Robot Hacks Applied . | . . . . Relay Couplers Released . | . . . . Fabnet Peak Effective % . | . . . . Robots Rewired . | . . . . Allies Hacked . | . . . . Hacks Repelled . | . . . . Allies | -11 -10 -10 -10 -------- Run | Yrd Mat Min Sub Total Allies 1 | . . 1 . Largest Group 1 | . . 1 1 Highest-Rated Group 31 | . . 31 31 Highest-Rated Ally 31 | . . 31 31 Total Orders . | . . . . Ally Attacks 24 | . . . 24 Total Damage 379 | . . . 379 Kills 3 | . . . 3 Allies Corrupted . | . . . . Allies Melted . | . . . . Intel | -11 -10 -10 -10 ------- Run | Yrd Mat Min Sub Active Infowar (turns) 1710 | 22 456 707 525 Terrain 1710 | 22 456 707 525 Robot Analysis Total . | . . . . Derelict Logs Recovered 2 | . . 1 1 Drone Launches . | . . . . Drone Recoveries . | . . . . Exploration | -11 -10 -10 -10 ------------- Run | Yrd Mat Min Sub Turns Passed 2431 | 117 456 707 1151 Spaces Moved 1479 | 60 260 473 686 Core 5 | 5 . . . Treads 155 | 55 100 . . Legs . | . . . . Wheels 1319 | . 160 473 686 Hover . | . . . . Flight . | . . . . Fastest Speed 50 | 50 135 135 119 Average Speed 141 | 153 147 140 140 Slowest Speed 320 | 160 320 200 215 Overloaded Moves . | . . . . Propulsion Burnouts . | . . . . Robots Hopped . | . . . . Potential Cave-ins . | . . . . Cave-ins Triggered . | . . . . Exploration Rate (%) 47 | 5 42 94 48 Regions Visited 3 Branch Regions 2 Pre-discovered Areas . | . . . . Known Exits Taken . | . . . . Unknown Exits Taken 3 | 1 1 1 . Scrap Searched 1 | . . 1 . Spaces Dug . | . . . . Terrain Destroyed 7 | 4 3 . . Melee . | . . . . Projectile . | . . . . AOE 7 | 4 3 . . Terrain Rammed . | . . . . Walls Destroyed . | . . . . Machines Disabled . | . . . . Actions | -11 -10 -10 -10 --------- Run | Yrd Mat Min Sub Total 1659 | 74 301 509 775 Wait 46 | . 5 27 14 Move 1476 | 59 259 472 686 Hop . | . . . . Pick Up 24 | 5 10 2 7 Fast Attach 9 | 6 . . 3 Attach 15 | . 3 3 9 Detach 1 | . . . 1 Swap 8 | . 3 . 5 Drop 5 | . 4 . 1 Fire 72 | 4 16 4 48 Melee . | . . . . Ram 3 | . 1 1 1 Kick . | . . . . Crush . | . . . . Escape Stasis . | . . . . Rewire . | . . . . Trap . | . . . . Miscellaneous . | . . . . Route ------- -11/Scrapyard -10/Materials (discovered 2 exits: [*Mat] / [*Min]) -10/Mines (discovered 3 exits: [*Mat x2] / [*Sub]) -10/Subcaves (discovered 2 exits: [*Mat x2]) History --------- Turn | Location | Event 5 | -11/Scrapyard | Discovered new exit (range 15) 118 | -11/Scrapyard | Entered Materials 323 | -10/Materials | Build established: Mutant 325 | -10/Materials | Discovered new exit (range 11) 531 | -10/Materials | Discovered new exit (range 12) 574 | -10/Materials | Entered Mines 638 | -10/Mines | Lost 3 parts (1p1n1w) 717 | -10/Mines | Received a Rocket Launcher from a helpful Derelict 948 | -10/Mines | Discovered new exit (range 5) 1168 | -10/Mines | Met a Derelict testing a Signal Generator 1219 | -10/Mines | Discovered new exit (range 3) 1236 | -10/Mines | Learned 2 Materials zone layouts 1267 | -10/Mines | Discovered new exit (range 5) 1281 | -10/Mines | Entered Subcaves 1281 | -10/Subcaves | Accompanied by 1 ally 1282 | -10/Subcaves | Approached by a straggling Scientist 1323 | -10/Subcaves | Learned location of 1 exit from Materials 1472 | -10/Subcaves | Discovered new exit (range 13) 1732 | -10/Subcaves | Core integrity fell below 50% 1747 | -10/Subcaves | Shifting Twisted Machinery released Sub. Power Source 1748 | -10/Subcaves | Shifting Twisted Machinery released Piercing Trap 1922 | -10/Subcaves | Discovered new exit (range 12) 1989 | -10/Subcaves | Shifting Twisted Machinery released Riot Gun 2001 | -10/Subcaves | Shifting Twisted Machinery released Piercing Trap 2421 | -10/Subcaves | A Subdweller sparked back to life 2421 | -10/Subcaves | A Subdweller sparked back to life 2421 | -10/Subcaves | A Subdweller sparked back to life 2425 | -10/Subcaves | Core integrity fell below 20% 2432 | -10/Subcaves | Destroyed by 18-U49(R) with Subdweller Laser Last Messages --------------- 02296_ Complication: System interference. 02296_ Beam Cannon temporarily disabled. 02302_ System corrupted: Matter fused (-5). 02312_ Acquired Lgt. Ion Engine. 02313_ Acquired 21 matter. 02330_ System corrupted: Matter fused (-6). 02374_ System corrupted: Component data lost. 02390_ System corrupted: Heat flow error (+296). 02412_ AVHVWK=5EGE|=R#4N 8V,SEYX2F REK/,# 02421_ 18-U49(R) creaks and sparks as it begins to move. 02421_ 14-TNM(R) creaks and sparks as it begins to move. 02421_ RF-W4O(R) creaks and sparks as it begins to move. 02421_ Beam Cannon destroyed. 02423_ Riot Gun destroyed. 02428_ System corrupted: Matter fused (-6). 02431_ Sub. Machine Gun shoots sparks and powers down. Map ----- +----------------------------------------------------+ | ??????????????????????##???????????????????????# | | ??????????????????????? ??????????????????????# | | ???????????????????????# ??????????????????????# | | ??????????????????????? ###???????????????????# | | ???????????????????????? ###?????????????????# | | ????????????????????????? #?????????????????# | | ?????????????????????##### #?????????????????#" | | ?????????????????????# # # * ##???????????????##" | | ??????????????????????# ! ##??????????????#" | | ?????????????????????## # ##?????????????#" | | ?????????????????????# ## ##????????????#" | | ?????????????????????## ## #???????####?## | | ??????????????????####"""## ##???###?# #### | | ??????????????????# #""### # "#??##"### | | ?????????????????## ""###"### "#??# & ## | | ?????????????????# ##"##"""## ##### "" # ## | | ?????????????????# ######""" ## """ #### | | ?????????????????# #???#" ## " ""###??## | | ?????????????????## #????##?### #" # ##????#" | | ?????????????????# ##?????????###" ## ##????#" | | ?????????????????# #?###???????#" #???##" | | ?????????????????## #### ##??????# ## #???#" | | ???????????????#### ## ####??## #####??## | | ??????????????## < < < #??# ##??????# | | ??????????????# R< #??# ##??????# ## | | ??????????????# # @R ##?## ###????## ## | | ??????????????# &< R #### # ###???# # | | ??????????????## # << # ## # ##### # | | ???????????????######### ### # # # | | ???????????????????????# ### ### | | ??????????????????????## ### | | ?????????????????????## ### ## | | ?????????????????????# # # ##?# #### | | ?????????????????????## ## ##### ### ##??####??? | | ??????????????????????######???####?####?????????? | | ?????????????????????????????????????????????????? | | ?????????????????????????????????????????????????? | | ?????????????????????????????????????????????????? | | ?????????????????????????????????????????????????? | | ?????????????????????????????????????????????????? | | ?????????????????????????????????????????????????? | | ?????????????????????????????????????????????????? | | ?????????????????????????????????????????????????? | | ?????????????????????????????????????????????????? | | ?????????????????????????????????????????????????? | | ?????????????????????????????????????????????????? | | ?????????????????????????????????????????????????? | | ?????????????????????????????????????????????????? | | ?????????????????????????????????????????????????? | | | +----------------------------------------------------+ Best States ------------- Heat Dissipation 25 Energy Generation 15 Energy Capacity 250 Matter Stores 300 Matter Capacity 300 Sight Range 16 Terrain Scan Range 16 Terrain Scan Density 10 Core Shielding 20 Evasion (%) 40 Recoil Reduction 2 Item Schematics ----------------- None Robot Schematics ------------------ None Fabricated ------------ Nothing Repaired ---------- Nothing Alien Tech Used ----------------- None Achievements -------------- None Challenges ------------ None Game ------ Seed MiningLobotomyClaws Manual? 0 Play Time 00:12:23 Cumulative 117.8 hours Start 2025.06.29 @ 19:43:47 End 2025.06.29 @ 19:55:59 Sessions 1 Manual Loads 0 Difficulty Rogue Special Mode None Game No. 224 Rogue 224 Adventurer 0 Explorer 0 Win Type - Total 0 Types 0/0/0/0/0/0/0/0/0/0 Lore% 31 Gallery% 47 Achievement% 36 Wizard Run 0 Options --------- Layout 1 ASCII 0 Keyboard 1 Movement Arrows Keybinds 0 Fullscreen 2 Font 24/Smallcaps Map View 50x35 Zoom Use 0% Tactical HUD 1 Map Filters NONE Filters NONE Steam 1 RUN: 15f96c7e-b75d-42ab-85e9-416d4bffaba6